lending/lending_fUSD_20240410
["ID","MTS","AMOUNT","RATE_DAILY","PERIOD"]
[322097247,1712764240833,-500.72724174,0.00021999,2]
[322097248,1712764240844,-562.65039884,0.00022,2]
[322097249,1712764240855,-783.68958544,0.00022,2]
[322097250,1712764240871,-1801.48280567,0.00022,2]
[322097251,1712764240881,-282.16237035,0.00022,2]
[322097252,1712764240898,-360.0,0.00022026,2]
[322097253,1712764240910,-153.77,0.00022276,2]
[322097254,1712764240920,-180.0,0.00022301,2]
[322097255,1712764240931,-189.122,0.00022407,2]
[322097256,1712764240942,-525.0,0.000228,2]
[322097257,1712764240953,-2018.0,0.000228,2]
[322097258,1712764240964,-307.07035254,0.00023,2]
[322097259,1712764240974,-155.0,0.00023,2]
[322097260,1712764240986,-155.0,0.00023,2]
[322097261,1712764240997,-300.0,0.00023,3]
[322097262,1712764241008,-552.0,0.00023013,2]
[322097263,1712764241020,-503.0,0.00023013,2]
[322097264,1712764241031,-162.86,0.00023112,2]
[322097265,1712764241043,-2032.88297,0.0002318,2]
[322097266,1712764241054,-1000.0,0.00023288,2]
[322097267,1712764241065,-1000.0,0.00023288,2]
[322097268,1712764241077,-1000.0,0.00023288,2]
[322097269,1712764241087,-1000.0,0.00023288,2]
[322097270,1712764241097,-1000.0,0.00023288,2]
[322097271,1712764241107,-1000.0,0.00023288,2]
[322097272,1712764241116,-1000.0,0.00023288,2]
[322097273,1712764241126,-1000.0,0.00023288,2]
[322097274,1712764241136,-1000.0,0.00023288,2]
[322097275,1712764241149,-1000.0,0.00023288,2]
[322097276,1712764241158,-1000.0,0.00023288,2]
[322097277,1712764241169,-1000.0,0.00023288,2]
[322097278,1712764241178,-1000.0,0.00023288,2]
[322097279,1712764241395,-1000.0,0.00023288,2]
[322097280,1712764241416,-192.0,0.00023288,2]
[322097281,1712764241426,-1000.0,0.00023288,2]
[322097282,1712764241435,-1056.0,0.00023288,2]
[322097283,1712764241445,-293.0,0.00023352,2]
[322097284,1712764241455,-5000.0,0.000235,2]
[322097285,1712764241464,-19460.06407151,0.000237,2]
[322097286,1712764241474,-640.0,0.00023938,2]
[322097287,1712764241483,-224.62727988,0.00024,2]
[322097288,1712764241493,-454.58628101,0.00024,2]
[322097289,1712764241504,-503.0,0.00024246,2]
[322097290,1712764241513,-162.86,0.00024277,2]
[322097291,1712764241523,-2032.88297,0.0002444,2]
[322097292,1712764241532,-360.0,0.00024474,2]
[322097293,1712764241542,-831.47,0.00024556,2]
[322097294,1712764241551,-149089.15696195,0.0002469,5]
[322097295,1712764241561,-2223.73711434,0.000248,2]
[322097296,1712764241570,-153.77,0.00024806,2]
[322097297,1712764241580,-269.04373579,0.00025,2]
[322097298,1712764241589,-155.0,0.00025,2]
[322097299,1712764241599,-155.0,0.00025,2]
[322097300,1712764241608,-2603.52703539,0.00025,2]
[322097301,1712764241618,-350.0,0.00025,3]
[322097302,1712764241627,-500.0,0.00025,2]
[322097303,1712764241637,-481.4,0.000251,2]
[322097304,1712764241648,-730.67,0.000251,2]
[322097305,1712764241658,-162.86,0.00025441,2]
[322097306,1712764241668,-503.0,0.00025479,2]
[322097307,1712764241677,-2032.88297,0.0002568,2]
[322097308,1712764241687,-151.78854707,0.00025967,2]
[322097309,1712764241696,-500000.0,0.00026,2]
[322097310,1712764241705,-4228.82111769,0.00026,2]
[322097311,1712764241715,-21055.10587461,0.000263,2]
[322097312,1712764241724,-640.0,0.00026331,2]
[322097313,1712764241733,-162.86,0.00026605,2]
[322097314,1712764241743,-503.0,0.00026712,2]
[322097315,1712764241752,-13872.0,0.00026716,2]
[322097316,1712764241761,-185.09,0.00026797,2]
[322097317,1712764241770,-360.0,0.00026921,2]
[322097318,1712764241779,-2032.88297,0.0002694,2]
[322097319,1712764241789,-155.05767173,0.00027,2]
[322097320,1712764241798,-1000.0,0.00027,2]
[322097321,1712764241807,-400.0,0.00027,3]
[322097322,1712764241816,-153.77,0.00027336,2]
[322097323,1712764241826,-1108.11623479,0.00027397,2]
[322097324,1712764241835,-220.43,0.00027397,2]
[322097325,1712764241844,-309.28,0.00027397,2]
[322097326,1712764241854,-151.22,0.00027397,2]
[322097327,1712764241867,-151.55,0.00027397,2]
[322097328,1712764241876,-175.21,0.00027397,2]
[322097329,1712764241885,-5300.14755709,0.000274,2]
[322097330,1712764241898,-5820.06,0.000274,2]
[322097331,1712764241907,-5820.06,0.000274,2]
[322097332,1712764241916,-5820.06,0.000274,2]
[322097333,1712764241925,-5820.06,0.000274,2]
[322097334,1712764241935,-5820.06,0.000274,2]
[322097335,1712764241944,-378.826704,0.000278,2]
[322097336,1712764241954,-503.0,0.00027945,2]
[322097337,1712764241963,-23535.94437515,0.00028,2]
[322097338,1712764241972,-470.7188875,0.00028,2]
[322097339,1712764241982,-640.0,0.00028725,2]
[322097340,1712764241991,-1000.0,0.00028799,2]
[322097341,1712764242000,-6744.92204359,0.00029,2]
[322097342,1712764242010,-450.0,0.00029,3]
[322097343,1712764242019,-150.87,0.00029,2]
[322097344,1712764242028,-150.87,0.00029,2]
[322097345,1712764242038,-150.87,0.00029,2]
[322097346,1712764242047,-150.87,0.00029,2]
[322097347,1712764242056,-150.87,0.00029,2]
[322097348,1712764242066,-150.87,0.00029,2]
[322097349,1712764242075,-150.87,0.00029,2]
[322097350,1712764242085,-150.87,0.00029,2]
[322097351,1712764242094,-150.87,0.00029,2]
[322097352,1712764242104,-150.87,0.00029,2]
[322097353,1712764242114,-150.87,0.00029,2]
[322097354,1712764242123,-150.87,0.00029,2]
[322097355,1712764242133,-150.87,0.00029,2]
[322097356,1712764242145,-150.87,0.00029,2]
[322097357,1712764242154,-150.87,0.00029,2]
[322097358,1712764242163,-150.87,0.00029,2]
[322097359,1712764242173,-150.87,0.00029,2]
[322097360,1712764242182,-150.87,0.00029,2]
[322097361,1712764242191,-150.87,0.00029,2]
[322097362,1712764242201,-150.87,0.00029,2]
[322097363,1712764242210,-150.87,0.00029,2]
[322097364,1712764242219,-150.87,0.00029,2]
[322097365,1712764242229,-150.87,0.00029,2]
[322097366,1712764242238,-150.87,0.00029,2]
[322097367,1712764242247,-150.87,0.00029,2]
[322097368,1712764242257,-503.0,0.00029178,2]
[322097369,1712764242267,-360.0,0.00029368,2]
[322097370,1712764242276,-441.77418907,0.000295,3]
[322097371,1712764242286,-6924.06841522,0.000297,2]
[322097372,1712764242295,-153.77,0.00029867,2]
[322097373,1712764242304,-56626.55641224,0.00029897,2]
[322097374,1712764242314,-911338.13665585,0.000299,2]
[322097375,1712764242328,-500.0,0.000299,2]
[322097376,1712764242497,-27348.80245773,0.000299,2]
[322097377,1712764242521,-1942.986612,0.000299,2]
[322097378,1712764242540,-594.28779399,0.000299,2]
[322097379,1712764242552,-3598.45,0.000299,2]
[322097384,1712764242959,-908845.3422563,0.000299,2]
[322097385,1712764243023,-3138.05679187,0.000299,2]
[322097386,1712764243079,-31027.48206047,0.000299,2]
[322097387,1712764243090,-921.71104743,0.000299,2]
[322097388,1712764243319,-362.44101717,0.000299,2]
[322097416,1712764245999,-700.53879767,0.00029899,2]
[322097417,1712764246011,-3622.54664996,0.00029899,2]
[322097418,1712764246022,-14165.34768886,0.000299,2]
[322097419,1712764246113,-206065.66498086,0.000299,2]
[322097420,1712764246230,-379.87228,0.000299,2]
[322097452,1712764317271,69570.34555261,0.00018316,2]
[322097464,1712764531804,159.25,0.00017527,2]
[322097465,1712764777823,16036.32650706,0.00033899,60]
[322097466,1712764818420,275.563401,0.0001897,2]
[322097467,1712764866530,4258.56225566,0.0001897,2]
[322097468,1712764902359,540.24,0.00018879,2]
[322097469,1712765033399,185.11,0.00018805,2]
[322097470,1712765036259,4797.83,0.00018789,2]
[322097471,1712765057278,189.01,0.00016893,2]
[322097472,1712765096336,405.12891114,0.00019,2]
[322097473,1712765104422,3769.17811368,0.00019,2]
[322097474,1712765107577,155.0,0.00019,2]
[322097475,1712765108626,779.7842727,0.00019,2]
[322097476,1712765111880,154.74,0.00018806,2]
[322097477,1712765112098,154.74,0.00018811,2]
[322097478,1712765112347,154.74,0.00018817,2]
[322097479,1712765112605,154.74,0.00018822,2]
[322097480,1712765112844,154.74,0.00018827,2]
[322097481,1712765113117,154.74,0.00018832,2]
[322097482,1712765113314,154.74,0.00018838,2]
[322097483,1712765113750,154.74,0.00018843,2]
[322097484,1712765114221,154.74,0.00018848,2]
[322097485,1712765114312,154.74,0.00018853,2]
[322097486,1712765114649,154.74,0.00018858,2]
[322097487,1712765114882,154.74,0.00018864,2]
[322097488,1712765115102,154.74,0.00018869,2]
[322097489,1712765115329,154.74,0.00018874,2]
[322097490,1712765115557,154.74,0.00018879,2]
[322097491,1712765115767,154.74,0.00018885,2]
[322097492,1712765116002,154.74,0.0001889,2]
[322097493,1712765116229,154.74,0.00018895,2]
[322097494,1712765116446,154.74,0.000189,2]
[322097495,1712765125310,1712.89,0.00018806,2]
[322097496,1712765126834,1626.0,0.00019,2]
[322097497,1712765128163,160.31,0.00018827,2]
[322097498,1712765140278,233.43375746,0.00019,2]
[322097499,1712765142741,312.79300987,0.00019,2]
[322097500,1712765147295,155.0,0.00019,2]
[322097501,1712765168521,210.77,0.00018806,2]
[322097502,1712765178901,405.12891114,0.00019,2]
[322097503,1712765214238,155.0,0.00019,2]
[322097504,1712765216822,500.0,0.00018816,2]
[322098040,1712765302905,16281.96170321,0.00019,2]
[322098043,1712765387808,160.69947647,0.00018919,2]
[322098058,1712765432980,-549.43032654,0.00019001,2]
[322098059,1712765432990,-3522.63845696,0.00019004,2]
[322098060,1712765433037,-1196.55671582,0.00019004,2]
[322098061,1712765433244,-153.8,0.00019019,2]
[322098062,1712765433255,-189.01,0.00019157,2]
[322098063,1712765433266,-166.15,0.00019378,2]
[322098064,1712765433279,-2884.77,0.00019397,2]
[322098065,1712765433289,-166.99,0.00019632,2]
[322098066,1712765433298,-150.0,0.00019645,2]
[322098067,1712765433308,-150.0,0.00019645,2]
[322098068,1712765433318,-150.99,0.00019646,2]
[322098069,1712765433328,-23581.54668129,0.00019733,2]
[322098070,1712765433341,-21592.20858535,0.00019733,2]
[322098079,1712765438438,-13319.37384709,0.00019733,2]
[322098082,1712765438457,-1685.3999999,0.00019733,2]
[322098084,1712765438471,-808.75030777,0.00019733,2]
[322098086,1712765438484,-741.27723955,0.00019733,2]
[322098089,1712765438497,-420.8888349,0.00019733,2]
[322098091,1712765438510,-324.95664198,0.00019733,2]
[322098093,1712765438522,-515.77982222,0.00019733,2]
[322098095,1712765438535,-1921.60271463,0.00019733,2]
[322098097,1712765438547,-9775.61953121,0.00019733,2]
[322098099,1712765438560,-42947.68179411,0.00019733,2]
[322098101,1712765438570,-499.99,0.00019745,2]
[322098104,1712765438581,-2307.21269176,0.00019746,2]
[322098106,1712765438590,-4715.68336052,0.00019748,2]
[322098108,1712765438602,-153.47,0.00019769,3]
[322098109,1712765438610,-460.42,0.00019769,3]
[322098110,1712765438620,-2454.44331834,0.00019783,2]
[322098111,1712765438629,-306.81664194,0.00019783,2]
[322098112,1712765438639,-617.2259,0.00019799,2]
[322098113,1712765438649,-7500.0,0.00019799,2]
[322098114,1712765438658,-160.69947646,0.00019799,2]
[322098115,1712765438668,-2454.44331832,0.000198,2]
[322098116,1712765438677,-210.98240875,0.000198,2]
[322098117,1712765438686,-2454.44331832,0.00019816,2]
[322098118,1712765438695,-2454.44331832,0.00019833,2]
[322098120,1712765438705,-2454.44331832,0.0001985,2]
[322098122,1712765438714,-2454.44331832,0.00019867,2]
[322098124,1712765438723,-5219.75258266,0.00019883,2]
[322098126,1712765438733,-2454.44331832,0.00019883,2]
[322098128,1712765438742,-184.43,0.00019889,2]
[322098130,1712765438751,-184.43,0.00019889,2]
[322098132,1712765438761,-627.83260574,0.0001989,2]
[322098134,1712765438771,-8886.16256706,0.00019897,2]
[322098136,1712765438780,-244.89311493,0.00019897,2]
[322098138,1712765438790,-375.99594554,0.00019897,2]
[322098140,1712765438800,-164.14681743,0.00019897,2]
[322098142,1712765438810,-1946.85537606,0.00019898,2]
[322098144,1712765438819,-528.55022575,0.00019898,2]
[322098146,1712765438829,-500.0,0.00019898,2]
[322098148,1712765438838,-500.0,0.00019898,2]
[322098150,1712765438850,-500.0,0.00019898,2]
[322098153,1712765438861,-500.0,0.00019898,2]
[322098154,1712765438871,-194.97277224,0.00019898,2]
[322098157,1712765438880,-500.0,0.00019898,2]
[322098159,1712765438889,-500.0,0.00019898,2]
[322098161,1712765438899,-5587.9072,0.00019899,2]
[322098163,1712765438908,-1000.0,0.00019899,2]
[322098165,1712765438918,-325798.66885056,0.00019899,2]
[322098167,1712765438927,-1260.738,0.00019899,2]
[322098169,1712765438937,-152.76250818,0.000199,2]
[322098171,1712765438946,-5219.75258266,0.000199,2]
[322098173,1712765438956,-2454.44331832,0.000199,2]
[322098175,1712765438965,-5163.71253629,0.000199,2]
[322098177,1712765438975,-152.87406506,0.000199,2]
[322098179,1712765438985,-41846.51659213,0.000199,2]
[322098181,1712765438994,-1781.29677687,0.000199,2]
[322098183,1712765439003,-1731.87516347,0.000199,2]
[322098185,1712765439013,-366.85538379,0.000199,2]
[322098187,1712765439022,-185.68441502,0.000199,2]
[322098189,1712765439030,-152.76250817,0.00019959,2]
[322098191,1712765439040,-306.8166419,0.00019969,2]
[322098193,1712765439050,-627.83260574,0.0001999,2]
[322098195,1712765439059,-627.83260574,0.0001999,2]
[322098197,1712765439068,-184.43,0.0001999,2]
[322098199,1712765439077,-184.43,0.0001999,2]
[322098201,1712765439087,-184.43,0.0001999,2]
[322098203,1712765439096,-184.43,0.0001999,2]
[322098205,1712765439106,-184.43,0.0001999,2]
[322098207,1712765439115,-184.43,0.0001999,2]
[322098209,1712765439126,-184.43,0.0001999,2]
[322098211,1712765439136,-184.43,0.0001999,2]
[322098213,1712765439145,-159.00931375,0.00019997,2]
[322098215,1712765439155,-580.97802351,0.00019997,2]
[322098217,1712765439165,-155.0,0.00019997,2]
[322098219,1712765439178,-452.21488982,0.00019997,2]
[322098221,1712765439188,-407.69218557,0.00019997,2]
[322098223,1712765439197,-221.27014755,0.00019998,2]
[322098225,1712765439208,-842.0277,0.00019998,2]
[322098227,1712765439220,-299.33879216,0.00019998,2]
[322098229,1712765439229,-207.28883958,0.00019998,2]
[322098231,1712765439240,-263.23157217,0.00019998,2]
[322098233,1712765439250,-166.94364196,0.00019998,2]
[322098235,1712765439259,-155.0,0.00019998,2]
[322098237,1712765439272,-304.53242447,0.00019998,2]
[322098239,1712765439281,-239.68779562,0.00019998,2]
[322098241,1712765439290,-261.60041953,0.00019998,2]
[322098243,1712765439300,-301.07124124,0.00019998,2]
[322098245,1712765439309,-156.3850435,0.00019998,2]
[322098247,1712765439318,-155.17839332,0.00019998,2]
[322098249,1712765439328,-353.7179818,0.00019998,2]
[322098252,1712765439338,-199.06250695,0.00019998,2]
[322098254,1712765439350,-407.53973989,0.00019998,2]
[322098256,1712765439359,-155.06552496,0.00019998,2]
[322098258,1712765439368,-201.87774174,0.00019998,2]
[322098260,1712765439377,-23297.98636349,0.00019998,2]
[322098261,1712765439386,-155.0,0.00019998,2]
[322098263,1712765439395,-266.84805779,0.00019998,2]
[322098265,1712765439417,-155.0,0.00019998,2]
[322098267,1712765439429,-1058.36793939,0.00019998,2]
[322098269,1712765439438,-2354.77756212,0.00019998,2]
[322098270,1712765439448,-155.0823366,0.00019998,2]
[322098272,1712765439457,-296.00785364,0.00019998,2]
[322098274,1712765439467,-3768.5646973,0.00019998,2]
[322098275,1712765439476,-864.327596,0.00019998,2]
[322098277,1712765439486,-193.66021181,0.00019998,2]
[322098279,1712765439496,-311.65881771,0.00019998,2]
[322098281,1712765439505,-233.3607456,0.00019998,2]
[322098282,1712765439515,-155.0,0.00019998,2]
[322098284,1712765439524,-408.22891195,0.00019998,2]
[322098286,1712765439534,-155.0,0.00019998,2]
[322098288,1712765439543,-233.46814828,0.00019999,2]
[322098289,1712765439553,-397.10810318,0.0002,2]
[322098291,1712765439563,-254.14645215,0.0002,2]
[322098293,1712765439573,-14434312.13169809,0.0002,2]
[322098295,1712765439588,-1646804.01598645,0.0002,2]
[322098297,1712765439600,-260.52629873,0.0002,2]
[322098298,1712765439610,-155.21992077,0.0002,2]
[322098300,1712765439620,-640.46092048,0.0002,2]
[322098302,1712765439629,-33808.89,0.0002,2]
[322098304,1712765439639,-3200.80983817,0.0002,2]
[322098305,1712765439649,-152.76250817,0.00020018,2]
[322098307,1712765439659,-152.76250817,0.00020076,2]
[322098309,1712765439670,-152.76250817,0.00020135,2]
[322098311,1712765439679,-306.8166419,0.00020155,2]
[322098312,1712765439689,-152.76250817,0.00020194,2]
[322098314,1712765439699,-217.23,0.00020212,2]
[322098316,1712765439709,-152.76250817,0.00020253,2]
[322098317,1712765439718,-218.35,0.00020253,2]
[322098320,1712765439727,-218.35,0.00020259,2]
[322098323,1712765439736,-218.35,0.00020264,2]
[322098326,1712765439746,-218.35,0.00020269,2]
[322098328,1712765439756,-218.35,0.00020275,2]
[322098329,1712765439766,-218.35,0.0002028,2]
[322098331,1712765439775,-218.35,0.00020285,2]
[322098333,1712765439784,-218.35,0.00020291,2]
[322098334,1712765439794,-218.35,0.00020296,2]
[322098336,1712765439803,-218.35,0.00020301,2]
[322098338,1712765439813,-218.35,0.00020307,2]
[322098340,1712765439822,-152.76250817,0.00020312,2]
[322098342,1712765439831,-218.35,0.00020312,2]
[322098344,1712765439840,-218.35,0.00020317,2]
[322098345,1712765439853,-218.35,0.00020323,2]
[322098347,1712765439863,-218.35,0.00020328,2]
[322098349,1712765439872,-218.35,0.00020334,2]
[322098351,1712765439882,-218.35,0.00020339,2]
[322098354,1712765439891,-306.8166419,0.00020342,2]
[322098356,1712765439900,-218.35,0.00020344,2]
[322098359,1712765439910,-218.35,0.0002035,2]
[322098361,1712765439919,-218.35,0.00020355,2]
[322098363,1712765439928,-152.76250817,0.00020371,2]
[322098365,1712765439937,-152.76250817,0.00020429,2]
[322098366,1712765439947,-152.76250817,0.00020488,2]
[322098369,1712765439956,-2778455.39344253,0.000205,2]
[322098372,1712765439966,-155.0,0.000205,2]
[322098375,1712765439976,-12568.45381489,0.000205,2]
[322098378,1712765439986,-306.8166419,0.00020528,2]
[322098380,1712765439995,-532.0,0.00020547,2]
[322098381,1712765440004,-549.0,0.00020547,2]
[322098383,1712765440013,-152.76250817,0.00020547,2]
[322098385,1712765440022,-557.18,0.00020548,2]
[322098386,1712765440032,-37441.01505618,0.000206,2]
[322098388,1712765440041,-152.76250817,0.00020606,2]
[322098390,1712765440050,-1062.0556,0.00020655,2]
[322098392,1712765440059,-2651.6253,0.00020655,2]
[322098394,1712765440068,-152.76250817,0.00020665,2]
[322098395,1712765440078,-1587.23104459,0.000207,2]
[322098397,1712765440087,-1587.23104459,0.000207,2]
[322098399,1712765440099,-1587.23104459,0.000207,2]
[322098401,1712765440108,-1587.23104459,0.000207,2]
[322098403,1712765440117,-1587.23104459,0.000207,2]
[322098405,1712765440126,-1587.23104459,0.000207,2]
[322098406,1712765440135,-1587.23104459,0.000207,2]
[322098408,1712765440144,-1587.23104459,0.000207,2]
[322098410,1712765440153,-1587.23104459,0.000207,2]
[322098412,1712765440162,-1587.23104459,0.000207,2]
[322098414,1712765440171,-1587.23104459,0.000207,2]
[322098416,1712765440181,-1587.23104459,0.000207,2]
[322098418,1712765440194,-1587.23104459,0.000207,2]
[322098420,1712765440203,-1587.23104459,0.000207,2]
[322098422,1712765440212,-1587.23104459,0.000207,2]
[322098424,1712765440222,-1587.23104459,0.000207,2]
[322098427,1712765440231,-1587.23104459,0.000207,2]
[322098428,1712765440241,-1587.23104459,0.000207,2]
[322098430,1712765440250,-1587.23104459,0.000207,2]
[322098431,1712765440260,-1587.23104459,0.000207,2]
[322098432,1712765440270,-1587.23104459,0.000207,2]
[322098433,1712765440280,-1587.23104459,0.000207,2]
[322098434,1712765440289,-1587.23104459,0.000207,2]
[322098435,1712765440299,-1587.23104459,0.000207,2]
[322098436,1712765440308,-1587.23104459,0.000207,2]
[322098437,1712765440318,-1587.23104459,0.000207,2]
[322098438,1712765440327,-1587.23104459,0.000207,2]
[322098439,1712765440336,-1587.23104459,0.000207,2]
[322098440,1712765440346,-1587.23104459,0.000207,2]
[322098441,1712765440355,-1587.23104459,0.000207,2]
[322098442,1712765440365,-1587.23104459,0.000207,2]
[322098444,1712765440375,-1587.23104459,0.000207,2]
[322098445,1712765440384,-1587.23104459,0.000207,2]
[322098447,1712765440394,-1587.23104459,0.000207,2]
[322098449,1712765440403,-1587.23104459,0.000207,2]
[322098451,1712765440413,-1587.23104459,0.000207,2]
[322098453,1712765440422,-1587.23104459,0.000207,2]
[322098455,1712765440431,-1587.23104459,0.000207,2]
[322098457,1712765440441,-1587.23104459,0.000207,2]
[322098459,1712765440450,-1587.23104459,0.000207,2]
[322098461,1712765440460,-1587.23104459,0.000207,2]
[322098463,1712765440469,-1587.23104459,0.000207,2]
[322098466,1712765440478,-1587.23104459,0.000207,2]
[322098485,1712765440646,-1587.23104459,0.000207,2]
[322098487,1712765440657,-1587.23104459,0.000207,2]
[322098489,1712765440666,-1587.23104459,0.000207,2]
[322098492,1712765440677,-1587.23104459,0.000207,2]
[322098493,1712765440687,-1587.23104459,0.000207,2]
[322098495,1712765440696,-1587.23104459,0.000207,2]
[322098497,1712765440705,-1587.23104459,0.000207,2]
[322098499,1712765440714,-306.8166419,0.00020714,2]
[322098502,1712765440723,-152.76250817,0.00020724,2]
[322098504,1712765440733,-205.23806172,0.00020754,2]
[322098506,1712765440742,-100000.0,0.00020755,2]
[322098508,1712765440751,-39959.6783,0.00020755,2]
[322098510,1712765440761,-152.76250817,0.00020782,2]
[322098512,1712765440770,-1238.069,0.00020798,2]
[322098514,1712765440780,-152.76250817,0.00020841,2]
[322098516,1712765440789,-500.0,0.000209,2]
[322098518,1712765440800,-152.76250817,0.000209,2]
[322098520,1712765440810,-306.8166419,0.000209,2]
[322098522,1712765440819,-185.68441501,0.000209,2]
[322098524,1712765440828,-5226.05,0.00020951,2]
[322098526,1712765440837,-155.92538713,0.00020998,2]
[322098528,1712765440848,-155.68969577,0.00020999,2]
[322098530,1712765440859,-155.62920748,0.00020999,2]
[322098532,1712765440868,-5680.20530654,0.00020999,2]
[322098534,1712765440878,-500.72724174,0.00020999,2]
[322098536,1712765440886,-175706.32168676,0.00020999,2]
[322098538,1712765440895,-14657379.80014183,0.00021,2]
[322098599,1712765441470,-8532.5,0.00021,2]
[322098602,1712765441481,-5626.83557855,0.00021,2]
[322098604,1712765441497,-3212.0,0.00021,2]
[322098606,1712765441509,-854.9999999,0.00021,2]
[322098609,1712765441520,-259.41654144,0.00021,2]
[322098611,1712765441531,-326.02721356,0.00021,2]
[322098615,1712765441560,-348.54490353,0.00021,2]
[322098617,1712765441572,-2743.78119423,0.00021,2]
[322098619,1712765441583,-309.12639055,0.00021,2]
[322098621,1712765441595,-1803.68570485,0.00021,2]
[322098788,1712765443088,-9940.76437508,0.000199,2]
[322098791,1712765443101,-3096.48244863,0.000199,2]
[322098793,1712765443113,-275.5634007,0.000199,2]
[322098795,1712765443125,-480.3000004,0.000199,2]
[322098805,1712765443201,-413.56641443,0.000199,2]
[322098807,1712765443211,-426.59,0.00019997,2]
[322098809,1712765443222,-7616.4534735,0.00021,2]
[322098811,1712765443233,-5014.9408874,0.00021,2]
[322098814,1712765443246,-5092.94534562,0.00021,2]
[322098816,1712765443258,-1825.62523912,0.00021,2]
[322098818,1712765443271,-6426.42648233,0.00021,2]
[322098830,1712765443369,-1207.19312784,0.00021,2]
[322098832,1712765443381,-33027.62667955,0.00021,2]
[322098838,1712765443426,-2647.75290783,0.00021,2]
[322098840,1712765443438,-7873.55252983,0.00021,2]
[322098841,1712765443537,-2274.07035841,0.00021,2]
[322098855,1712765446204,-1578.36830522,0.00021,2]
[322098856,1712765446489,-442.55742415,0.00021,2]
[322098871,1712765463753,150.5,0.0002099,15]
[322098872,1712765463785,150.5,0.0002099,15]
[322098873,1712765464219,150.5,0.0002098,15]
[322098874,1712765464262,286.61,0.0002098,15]
[322098875,1712765464688,150.5,0.0002097,15]
[322098876,1712765540929,193.13,0.00018118,2]
[322098877,1712765583947,334.0,0.0002099,15]
[322098878,1712765584459,334.0,0.0002098,15]
[322098879,1712765584944,334.0,0.0002097,15]
[322098880,1712765585413,334.0,0.0002099,15]
[322098881,1712765585897,334.0,0.0002098,15]
[322098882,1712765586775,334.0,0.0002097,15]
[322098883,1712765587246,334.0,0.0002099,15]
[322098884,1712765587718,334.0,0.0002098,15]
[322098885,1712765588247,334.0,0.0002099,15]
[322098886,1712765588737,339.0,0.0002098,15]
[322098889,1712765856260,801.03,0.00018933,2]
[322098891,1712765950053,250.0,0.00018823,2]
[322098892,1712765995201,562.17,0.00018753,2]
[322098893,1712766002741,267.58069064,0.00018823,2]
[322098894,1712766007754,163.78,0.00018968,2]
[322098895,1712766016684,4959.87,0.00018821,2]
[322098896,1712766048175,-1780.63681343,0.00019006,2]
[322098897,1712766048199,-219.36318657,0.00019006,2]
[322098898,1712766049441,-1561.27362686,0.00019006,2]
[322098899,1712766049464,-438.72637314,0.00019006,2]
[322098900,1712766049911,-1341.91044029,0.00019006,2]
[322098901,1712766049932,-658.08955971,0.00019006,2]
[322098902,1712766050394,-1122.54725372,0.00019006,2]
[322098903,1712766050418,-300.0,0.00019007,2]
[322098904,1712766050441,-150.0,0.00019007,2]
[322098905,1712766050464,-427.45274628,0.0001901,2]
[322098906,1712766051335,-72.54725372,0.0001901,2]
[322098907,1712766051360,-500.0,0.0001901,2]
[322098908,1712766051382,-200.0,0.00019094,2]
[322098909,1712766051404,-997.52,0.00019178,2]
[322098910,1712766051428,-229.93274628,0.00019222,2]
[322098911,1712766084778,183.47,0.00017056,2]